[Event "Early-Titled-Tuesday-Blitz-November-28-2023"]
[Site "Chess.com"]
[Date "2023.11.28"]
[Round "3"]
[White "Schattman"]
[Black "karinachess1"]
[Result "1/2-1/2"]
[WhiteElo "2419"]
[BlackElo "2593"]
[TimeControl "180+1"]
[EndTime "8:30:03 PST"]
[Termination "Game drawn by repetition"]

1. c4 {[%clk 0:03:00.9]} 1... e5 {[%clk 0:02:58.4]} 2. b3 {[%clk 0:02:53.5]}
2... f5 {[%clk 0:02:57.3]} 3. Bb2 {[%clk 0:02:51.4]} 3... d6 {[%clk 0:02:57.7]}
4. d4 {[%clk 0:02:51.3]} 4... e4 {[%clk 0:02:57.8]} 5. d5 {[%clk 0:02:50.9]}
5... Nf6 {[%clk 0:02:57.6]} 6. e3 {[%clk 0:02:50.6]} 6... Be7 {[%clk 0:02:57.6]}
7. Nh3 {[%clk 0:02:50.6]} 7... O-O {[%clk 0:02:57.6]} 8. Nf4 {[%clk 0:02:50.7]}
8... a5 {[%clk 0:02:56.2]} 9. Nc3 {[%clk 0:02:49.8]} 9... Na6 {[%clk 0:02:55.8]}
10. h3 {[%clk 0:02:49.4]} 10... Nc5 {[%clk 0:02:55.8]} 11. Be2 {[%clk
0:02:42.6]} 11... Nfd7 {[%clk 0:02:47]} 12. a3 {[%clk 0:02:36.7]} 12... Ne5
{[%clk 0:02:43.7]} 13. b4 {[%clk 0:02:30.2]} 13... axb4 {[%clk 0:02:44.6]} 14.
axb4 {[%clk 0:02:28.3]} 14... Rxa1 {[%clk 0:02:45.3]} 15. Bxa1 {[%clk
0:02:27.9]} 15... Na6 {[%clk 0:02:41]} 16. Qb3 {[%clk 0:02:17.4]} 16... Qe8
{[%clk 0:02:20.6]} 17. O-O {[%clk 0:02:12.5]} 17... Qf7 {[%clk 0:01:55.1]} 18.
Bb2 {[%clk 0:02:01.2]} 18... g5 {[%clk 0:01:50.8]} 19. Ne6 {[%clk 0:01:58]}
19... Bxe6 {[%clk 0:01:45.9]} 20. dxe6 {[%clk 0:01:58.9]} 20... Qxe6 {[%clk
0:01:46.8]} 21. Nd5 {[%clk 0:01:58.2]} 21... Bd8 {[%clk 0:01:40.2]} 22. c5
{[%clk 0:01:54.3]} 22... Kg7 {[%clk 0:01:05.8]} 23. Bc4 {[%clk 0:01:40.5]} 23...
Kh6 {[%clk 0:00:47.2]} 24. c6 {[%clk 0:01:36.8]} 24... Nxc6 {[%clk 0:00:41.6]}
25. Qc3 {[%clk 0:01:24.4]} 25... Ne5 {[%clk 0:00:39.1]} 26. Bxa6 {[%clk
0:01:08.9]} 26... Qxd5 {[%clk 0:00:33.4]} 27. Be2 {[%clk 0:01:03.4]} 27... Qf7
{[%clk 0:00:28.6]} 28. Rc1 {[%clk 0:00:56.9]} 28... c6 {[%clk 0:00:24.7]} 29.
Qd2 {[%clk 0:00:50.3]} 29... Qe6 {[%clk 0:00:21.6]} 30. Rd1 {[%clk 0:00:48]}
30... Be7 {[%clk 0:00:21.1]} 31. b5 {[%clk 0:00:48.3]} 31... Rd8 {[%clk
0:00:18.3]} 32. bxc6 {[%clk 0:00:47.4]} 32... bxc6 {[%clk 0:00:19.2]} 33. Rc1
{[%clk 0:00:43.9]} 33... Kg7 {[%clk 0:00:16]} 34. Rxc6 {[%clk 0:00:39.3]} 34...
Kg6 {[%clk 0:00:14.1]} 35. Bxe5 {[%clk 0:00:36]} 35... Qxe5 {[%clk 0:00:13.6]}
36. Bc4 {[%clk 0:00:33.8]} 36... f4 {[%clk 0:00:06.7]} 37. Bd5 {[%clk
0:00:26.8]} 37... Rf8 {[%clk 0:00:06.8]} 38. Rc7 {[%clk 0:00:25]} 38... fxe3
{[%clk 0:00:05.6]} 39. fxe3 {[%clk 0:00:24.6]} 39... h5 {[%clk 0:00:04.6]} 40.
Rc1 {[%clk 0:00:19.3]} 40... g4 {[%clk 0:00:04.2]} 41. hxg4 {[%clk 0:00:18.1]}
41... hxg4 {[%clk 0:00:05.1]} 42. Rf1 {[%clk 0:00:16.5]} 42... Rxf1+ {[%clk
0:00:04.9]} 43. Kxf1 {[%clk 0:00:16.1]} 43... Bh4 {[%clk 0:00:04.7]} 44. Bc6
{[%clk 0:00:11.9]} 44... Qa1+ {[%clk 0:00:04.2]} 45. Ke2 {[%clk 0:00:11.3]}
45... Qe5 {[%clk 0:00:04.1]} 46. Qd5 {[%clk 0:00:10.5]} 46... Qxd5 {[%clk
0:00:03.8]} 47. Bxd5 {[%clk 0:00:09.8]} 47... Kf5 {[%clk 0:00:04.7]} 48. Bb7
{[%clk 0:00:10.2]} 48... Ke5 {[%clk 0:00:04.8]} 49. Bc8 {[%clk 0:00:10]} 49...
g3 {[%clk 0:00:05.3]} 50. Bb7 {[%clk 0:00:08.9]} 50... Bg5 {[%clk 0:00:05.6]}
51. Ba8 {[%clk 0:00:08.6]} 51... d5 {[%clk 0:00:05.9]} 52. Bb7 {[%clk
0:00:08.6]} 52... Be7 {[%clk 0:00:05.3]} 53. Bc6 {[%clk 0:00:08.4]} 53... Bc5
{[%clk 0:00:05.4]} 54. Bb7 {[%clk 0:00:07.6]} 54... Kd6 {[%clk 0:00:05.2]} 55.
Ba8 {[%clk 0:00:07.6]} 55... Bb6 {[%clk 0:00:05.3]} 56. Bb7 {[%clk 0:00:07.7]}
56... Ke5 {[%clk 0:00:05.7]} 57. Ba8 {[%clk 0:00:07.7]} 57... d4 {[%clk
0:00:05.5]} 58. exd4+ {[%clk 0:00:07.1]} 58... Bxd4 {[%clk 0:00:06.4]} 59. Bb7
{[%clk 0:00:07.3]} 59... Bf2 {[%clk 0:00:07]} 60. Ba8 {[%clk 0:00:07.4]} 60...
Kd4 {[%clk 0:00:07.3]} 61. Bb7 {[%clk 0:00:07.3]} 61... Ke5 {[%clk 0:00:07.1]}
62. Ba8 {[%clk 0:00:07.4]} 62... Kf4 {[%clk 0:00:08]} 63. Bb7 {[%clk 0:00:07]}
63... Ke5 {[%clk 0:00:08.6]} 1/2-1/2

[Event "Early-Titled-Tuesday-Blitz-November-28-2023"]
[Site "Chess.com"]
[Date "2023.11.28"]
[Round "3"]
[White "bascheyaro"]
[Black "Pastore1978"]
[Result "1-0"]
[WhiteElo "2843"]
[BlackElo "2440"]
[TimeControl "180+1"]
[EndTime "8:30:05 PST"]
[Termination "bascheyaro won on time"]

1. d4 {[%clk 0:02:52.9]} 1... d5 {[%clk 0:03:00]} 2. Nf3 {[%clk 0:02:52.8]} 2...
Nf6 {[%clk 0:02:59.8]} 3. c4 {[%clk 0:02:43.6]} 3... e6 {[%clk 0:03:00]} 4. Nc3
{[%clk 0:02:43.3]} 4... c6 {[%clk 0:03:00.4]} 5. Bg5 {[%clk 0:02:43.2]} 5... h6
{[%clk 0:02:58]} 6. Bh4 {[%clk 0:02:42]} 6... Be7 {[%clk 0:02:56.6]} 7. e3
{[%clk 0:02:42.2]} 7... O-O {[%clk 0:02:56]} 8. Qc2 {[%clk 0:02:42.2]} 8... Nbd7
{[%clk 0:02:56.3]} 9. Rd1 {[%clk 0:02:42.1]} 9... b6 {[%clk 0:02:35.6]} 10. a3
{[%clk 0:02:41.5]} 10... Bb7 {[%clk 0:02:32]} 11. cxd5 {[%clk 0:02:41.1]} 11...
Nxd5 {[%clk 0:02:30.5]} 12. Bxe7 {[%clk 0:02:40.1]} 12... Qxe7 {[%clk
0:02:30.4]} 13. Bd3 {[%clk 0:02:39.9]} 13... c5 {[%clk 0:02:19.1]} 14. Nxd5
{[%clk 0:02:38.8]} 14... Bxd5 {[%clk 0:02:09.3]} 15. Bh7+ {[%clk 0:02:29.6]}
15... Kh8 {[%clk 0:02:09.1]} 16. Be4 {[%clk 0:02:30.4]} 16... Nf6 {[%clk
0:01:59.8]} 17. Bxd5 {[%clk 0:02:30.1]} 17... Nxd5 {[%clk 0:02:00.7]} 18. dxc5
{[%clk 0:02:28.6]} 18... Qxc5 {[%clk 0:01:55.3]} 19. Qxc5 {[%clk 0:02:28.2]}
19... bxc5 {[%clk 0:01:56.2]} 20. Rc1 {[%clk 0:02:25.7]} 20... Rab8 {[%clk
0:01:55.2]} 21. Rc2 {[%clk 0:02:25.2]} 21... f6 {[%clk 0:01:35.2]} 22. Ke2
{[%clk 0:02:00.8]} 22... Rb5 {[%clk 0:01:23.4]} 23. Nd2 {[%clk 0:02:00.7]} 23...
Rfb8 {[%clk 0:01:14.3]} 24. Nc4 {[%clk 0:02:00.6]} 24... Nb6 {[%clk 0:01:03.1]}
25. Nd6 {[%clk 0:02:00.2]} 25... Rb3 {[%clk 0:00:58.4]} 26. Rxc5 {[%clk
0:01:05.4]} 26... Rxb2+ {[%clk 0:00:58.2]} 27. Kf3 {[%clk 0:01:05.9]} 27... Nd7
{[%clk 0:00:48]} 28. Rc7 {[%clk 0:01:03.5]} 28... Ne5+ {[%clk 0:00:39.2]} 29.
Kg3 {[%clk 0:01:03.9]} 29... a5 {[%clk 0:00:34.6]} 30. Ra7 {[%clk 0:00:21.8]}
30... Ra2 {[%clk 0:00:26]} 31. Rxa5 {[%clk 0:00:20.8]} 31... Rbb2 {[%clk
0:00:26.7]} 32. Rf1 {[%clk 0:00:20.6]} 32... h5 {[%clk 0:00:23.6]} 33. h4 {[%clk
0:00:18.9]} 33... Nd3 {[%clk 0:00:22.4]} 34. Rxh5+ {[%clk 0:00:18.4]} 34... Kg8
{[%clk 0:00:22.1]} 35. Rb5 {[%clk 0:00:11.8]} 35... Rxf2 {[%clk 0:00:16.8]} 36.
Rxf2 {[%clk 0:00:11.7]} 36... Nxf2 {[%clk 0:00:17.6]} 37. Rb4 {[%clk 0:00:10.5]}
37... Nd3 {[%clk 0:00:14.1]} 38. Rb3 {[%clk 0:00:10.6]} 38... Ne5 {[%clk
0:00:13.7]} 39. h5 {[%clk 0:00:07.6]} 39... Kh7 {[%clk 0:00:14.1]} 40. Kh3
{[%clk 0:00:06.6]} 40... Re2 {[%clk 0:00:13.1]} 41. g4 {[%clk 0:00:06.4]} 41...
Nf3 {[%clk 0:00:11.4]} 42. Kg3 {[%clk 0:00:06.5]} 42... Ng5 {[%clk 0:00:11.8]}
43. Rc3 {[%clk 0:00:04.4]} 43... Ra2 {[%clk 0:00:09.2]} 44. Rd3 {[%clk
0:00:04.3]} 44... Ra1 {[%clk 0:00:08.8]} 45. e4 {[%clk 0:00:04.8]} 45... Re1
{[%clk 0:00:07]} 46. a4 {[%clk 0:00:03.5]} 46... Nxe4+ {[%clk 0:00:05.8]} 47.
Nxe4 {[%clk 0:00:04]} 47... Rxe4 {[%clk 0:00:06.7]} 48. Ra3 {[%clk 0:00:04.9]}
48... Rd4 {[%clk 0:00:05.3]} 49. a5 {[%clk 0:00:05.4]} 49... Rd7 {[%clk
0:00:05.6]} 50. a6 {[%clk 0:00:06]} 50... Ra7 {[%clk 0:00:05.9]} 51. Kf4 {[%clk
0:00:06.7]} 51... Kg8 {[%clk 0:00:05]} 52. Ke4 {[%clk 0:00:06.7]} 52... Kf7
{[%clk 0:00:02.7]} 53. Kd4 {[%clk 0:00:07.3]} 53... Ke7 {[%clk 0:00:03.2]} 54.
Kc5 {[%clk 0:00:07.9]} 54... Kd7 {[%clk 0:00:03.8]} 55. Kb6 {[%clk 0:00:08.5]}
55... Ra8 {[%clk 0:00:02.3]} 56. Kb7 {[%clk 0:00:09.1]} 56... Rh8 {[%clk
0:00:01.6]} 57. Rd3+ {[%clk 0:00:09.3]} 57... Ke7 {[%clk 0:00:01.2]} 58. a7
{[%clk 0:00:10.2]} 1-0

[Event "Early-Titled-Tuesday-Blitz-November-28-2023"]
[Site "Chess.com"]
[Date "2023.11.28"]
[Round "3"]
[White "Elbebiber"]
[Black "Levanzovsky"]
[Result "1-0"]
[WhiteElo "2120"]
[BlackElo "2346"]
[TimeControl "180+1"]
[EndTime "8:30:08 PST"]
[Termination "Elbebiber won by resignation"]

1. d4 {[%clk 0:03:00.9]} 1... Nf6 {[%clk 0:02:59.4]} 2. Bg5 {[%clk 0:02:59.5]}
2... d5 {[%clk 0:02:58.3]} 3. Bxf6 {[%clk 0:02:59.4]} 3... gxf6 {[%clk
0:02:57.1]} 4. e3 {[%clk 0:02:57.5]} 4... c5 {[%clk 0:02:57.2]} 5. Nf3 {[%clk
0:02:55.3]} 5... e6 {[%clk 0:02:57.3]} 6. c4 {[%clk 0:02:50.8]} 6... cxd4 {[%clk
0:02:50.1]} 7. exd4 {[%clk 0:02:35.5]} 7... Qb6 {[%clk 0:02:49.4]} 8. Qb3 {[%clk
0:02:30.8]} 8... dxc4 {[%clk 0:02:39.6]} 9. Bxc4 {[%clk 0:02:27.8]} 9... Nc6
{[%clk 0:02:39.1]} 10. Qxb6 {[%clk 0:02:12.2]} 10... axb6 {[%clk 0:02:38.7]} 11.
Nc3 {[%clk 0:02:09.8]} 11... Bd7 {[%clk 0:02:29.9]} 12. O-O {[%clk 0:02:06]}
12... Bd6 {[%clk 0:02:09.2]} 13. d5 {[%clk 0:01:53.7]} 13... Ne5 {[%clk
0:02:08.9]} 14. Nxe5 {[%clk 0:01:50.7]} 14... Bxe5 {[%clk 0:02:09.8]} 15. dxe6
{[%clk 0:01:47.8]} 15... fxe6 {[%clk 0:02:10.7]} 16. Rfe1 {[%clk 0:01:38.3]}
16... Ke7 {[%clk 0:02:09]} 17. g3 {[%clk 0:01:22.9]} 17... Rhc8 {[%clk
0:02:07.1]} 18. Bb3 {[%clk 0:01:19.4]} 18... Bxc3 {[%clk 0:02:06.4]} 19. bxc3
{[%clk 0:01:19.6]} 19... Rxc3 {[%clk 0:02:07.2]} 20. Rad1 {[%clk 0:01:12.7]}
20... Ra5 {[%clk 0:01:56.9]} 21. Rd4 {[%clk 0:01:10.8]} 21... e5 {[%clk
0:01:41.8]} 22. Rh4 {[%clk 0:01:07.1]} 22... Bf5 {[%clk 0:01:41.6]} 23. Rb4
{[%clk 0:01:00.5]} 23... Rc6 {[%clk 0:01:34.6]} 24. f4 {[%clk 0:00:53.9]} 24...
Rac5 {[%clk 0:01:32.6]} 25. fxe5 {[%clk 0:00:51.2]} 25... fxe5 {[%clk
0:01:33.5]} 26. Kf2 {[%clk 0:00:48.4]} 26... Bg6 {[%clk 0:01:29.1]} 27. Re2
{[%clk 0:00:39]} 27... Rf6+ {[%clk 0:01:27.7]} 28. Ke3 {[%clk 0:00:35.7]} 28...
Rc3+ {[%clk 0:01:26.7]} 29. Kd2 {[%clk 0:00:35.6]} 29... Rd3+ {[%clk 0:01:26.9]}
30. Ke1 {[%clk 0:00:34.6]} 30... e4 {[%clk 0:01:02.9]} 31. Bc2 {[%clk
0:00:30.2]} 31... Kd7 {[%clk 0:00:47.1]} 32. Bxd3 {[%clk 0:00:21.8]} 32... exd3
{[%clk 0:00:48]} 33. Re3 {[%clk 0:00:19.6]} 33... Kc6 {[%clk 0:00:43.2]} 34. Rd4
{[%clk 0:00:18.4]} 34... Kc5 {[%clk 0:00:36.1]} 35. Rf4 {[%clk 0:00:18.5]} 35...
Rd6 {[%clk 0:00:34.9]} 36. Kd2 {[%clk 0:00:18.3]} 36... b5 {[%clk 0:00:33.6]}
37. a3 {[%clk 0:00:17.8]} 37... Ra6 {[%clk 0:00:31.3]} 38. Rb4 {[%clk
0:00:11.1]} 38... Rxa3 {[%clk 0:00:30.1]} 39. Rb2 {[%clk 0:00:11.8]} 39... b4
{[%clk 0:00:21.5]} 40. h4 {[%clk 0:00:10.3]} 40... h5 {[%clk 0:00:10.9]} 41. Re6
{[%clk 0:00:08.1]} 41... Bf7 {[%clk 0:00:08.1]} 42. Rf6 {[%clk 0:00:08.2]} 42...
Bd5 {[%clk 0:00:07.8]} 43. Rf5 {[%clk 0:00:08]} 43... Rc3 {[%clk 0:00:06.6]} 44.
Rxh5 {[%clk 0:00:05]} 44... b5 {[%clk 0:00:06.7]} 45. Rg5 {[%clk 0:00:04.2]}
45... Kd4 {[%clk 0:00:05.7]} 46. h5 {[%clk 0:00:04.5]} 46... Be4 {[%clk
0:00:04]} 47. h6 {[%clk 0:00:04.5]} 47... Rc2+ {[%clk 0:00:02.8]} 48. Rxc2
{[%clk 0:00:02.1]} 48... dxc2 {[%clk 0:00:03.7]} 49. Kc1 {[%clk 0:00:02.4]}
49... Kc3 {[%clk 0:00:02.8]} 50. Rg7 {[%clk 0:00:01.6]} 50... b3 {[%clk
0:00:03.7]} 51. Rc7+ {[%clk 0:00:01.5]} 51... Kd3 {[%clk 0:00:03.1]} 52. Rd7+
{[%clk 0:00:01.6]} 52... Kc3 {[%clk 0:00:03.4]} 53. Rc7+ {[%clk 0:00:01.3]}
53... Kb4 {[%clk 0:00:04.1]} 54. Rd7 {[%clk 0:00:01.6]} 54... Ka3 {[%clk
0:00:03.9]} 55. Ra7+ {[%clk 0:00:01.9]} 55... Kb4 {[%clk 0:00:04.4]} 56. Kb2
{[%clk 0:00:02.2]} 56... Bd3 {[%clk 0:00:03.2]} 57. Rc7 {[%clk 0:00:02.2]} 57...
Bg6 {[%clk 0:00:02.4]} 58. h7 {[%clk 0:00:02.4]} 58... Bxh7 {[%clk 0:00:02]} 59.
Rxh7 {[%clk 0:00:03.3]} 59... Kc4 {[%clk 0:00:02.6]} 60. Rc7+ {[%clk 0:00:03.3]}
60... Kd3 {[%clk 0:00:03.5]} 61. g4 {[%clk 0:00:03.5]} 61... Ke4 {[%clk
0:00:04]} 62. Rd7 {[%clk 0:00:04]} 1-0

[Event "Early-Titled-Tuesday-Blitz-November-28-2023"]
[Site "Chess.com"]
[Date "2023.11.28"]
[Round "3"]
[White "sergiochess83"]
[Black "FARIZA2018"]
[Result "1/2-1/2"]
[WhiteElo "2877"]
[BlackElo "2528"]
[TimeControl "180+1"]
[EndTime "8:30:10 PST"]
[Termination "Game drawn - insufficient material"]

1. d4 {[%clk 0:02:40.1]} 1... Nf6 {[%clk 0:03:00.1]} 2. Bg5 {[%clk 0:02:38.8]}
2... Ne4 {[%clk 0:03:00]} 3. Bf4 {[%clk 0:02:35.5]} 3... d5 {[%clk 0:03:00.1]}
4. e3 {[%clk 0:02:36]} 4... c5 {[%clk 0:02:59.8]} 5. Nd2 {[%clk 0:02:34.4]} 5...
Nxd2 {[%clk 0:02:59.5]} 6. Qxd2 {[%clk 0:02:34]} 6... cxd4 {[%clk 0:02:59.8]} 7.
exd4 {[%clk 0:02:33.8]} 7... Nc6 {[%clk 0:02:59.4]} 8. Nf3 {[%clk 0:02:29.7]}
8... Bf5 {[%clk 0:02:58.7]} 9. Ne5 {[%clk 0:02:06.1]} 9... Rc8 {[%clk
0:02:55.4]} 10. Nxc6 {[%clk 0:02:03.5]} 10... bxc6 {[%clk 0:02:54.6]} 11. Ba6
{[%clk 0:02:03.1]} 11... Rb8 {[%clk 0:02:47.3]} 12. Bxb8 {[%clk 0:02:01.8]}
12... Qxb8 {[%clk 0:02:46.8]} 13. c3 {[%clk 0:01:40]} 13... e6 {[%clk 0:02:41]}
14. Bd3 {[%clk 0:01:27.5]} 14... Bg6 {[%clk 0:02:05.5]} 15. b4 {[%clk
0:01:17.9]} 15... Bd6 {[%clk 0:02:04.7]} 16. g3 {[%clk 0:01:14.8]} 16... Qd8
{[%clk 0:01:43.7]} 17. O-O {[%clk 0:01:12.2]} 17... Bh5 {[%clk 0:01:42]} 18. f4
{[%clk 0:01:10.1]} 18... O-O {[%clk 0:01:41.1]} 19. Rae1 {[%clk 0:01:06.3]}
19... Bg4 {[%clk 0:01:39.1]} 20. Kg2 {[%clk 0:01:00.5]} 20... Qf6 {[%clk
0:01:14.6]} 21. h3 {[%clk 0:00:42.8]} 21... Bh5 {[%clk 0:01:14]} 22. f5 {[%clk
0:00:32.3]} 22... exf5 {[%clk 0:01:07.5]} 23. Bxf5 {[%clk 0:00:18.6]} 23... Qd8
{[%clk 0:01:02.1]} 24. Qd3 {[%clk 0:00:18.5]} 24... g6 {[%clk 0:00:52.6]} 25.
Bg4 {[%clk 0:00:17.8]} 25... Bxg4 {[%clk 0:00:46.2]} 26. hxg4 {[%clk 0:00:18.7]}
26... Qg5 {[%clk 0:00:46.7]} 27. Qf3 {[%clk 0:00:18.3]} 27... Kg7 {[%clk
0:00:45.4]} 28. Re2 {[%clk 0:00:18.1]} 28... a6 {[%clk 0:00:38.6]} 29. a4 {[%clk
0:00:17.8]} 29... h6 {[%clk 0:00:36.4]} 30. Ref2 {[%clk 0:00:18]} 30... f6
{[%clk 0:00:34]} 31. Re2 {[%clk 0:00:17.5]} 31... Rf7 {[%clk 0:00:32.4]} 32. Re6
{[%clk 0:00:13.2]} 32... Bf8 {[%clk 0:00:29.9]} 33. Rxc6 {[%clk 0:00:13]} 33...
f5 {[%clk 0:00:30.3]} 34. gxf5 {[%clk 0:00:10.5]} 34... Rxf5 {[%clk 0:00:30.4]}
35. Qe2 {[%clk 0:00:09.9]} 35... Rxf1 {[%clk 0:00:29.3]} 36. Qxf1 {[%clk
0:00:10.3]} 36... Qe7 {[%clk 0:00:21.2]} 37. Qf2 {[%clk 0:00:07.5]} 37... Qe4+
{[%clk 0:00:21]} 38. Kh2 {[%clk 0:00:07.6]} 38... Be7 {[%clk 0:00:19.1]} 39. b5
{[%clk 0:00:07.1]} 39... axb5 {[%clk 0:00:19.2]} 40. axb5 {[%clk 0:00:07.2]}
40... h5 {[%clk 0:00:19.2]} 41. Rc7 {[%clk 0:00:06.4]} 41... h4 {[%clk
0:00:19.3]} 42. gxh4 {[%clk 0:00:05.7]} 42... Kh6 {[%clk 0:00:18.1]} 43. Rxe7
{[%clk 0:00:05.6]} 43... Qxe7 {[%clk 0:00:18.3]} 44. b6 {[%clk 0:00:05.8]} 44...
Qd6+ {[%clk 0:00:18.3]} 45. Qg3 {[%clk 0:00:06.1]} 45... Qxb6 {[%clk 0:00:18.7]}
46. Qg5+ {[%clk 0:00:06.5]} 46... Kh7 {[%clk 0:00:19.2]} 47. Qxd5 {[%clk
0:00:06.8]} 47... Qb2+ {[%clk 0:00:19.3]} 48. Kg3 {[%clk 0:00:07.4]} 48... Qxc3+
{[%clk 0:00:19.7]} 49. Kg4 {[%clk 0:00:08.1]} 49... Qd2 {[%clk 0:00:19.7]} 50.
Qe5 {[%clk 0:00:07.4]} 50... Qd1+ {[%clk 0:00:19.9]} 51. Kg3 {[%clk 0:00:06.6]}
51... Qd3+ {[%clk 0:00:20.1]} 52. Kf4 {[%clk 0:00:06.5]} 52... Qd2+ {[%clk
0:00:20.4]} 53. Kg4 {[%clk 0:00:05.3]} 53... Qg2+ {[%clk 0:00:20.5]} 54. Kf4
{[%clk 0:00:04.8]} 54... Qh2+ {[%clk 0:00:20.7]} 55. Kg5 {[%clk 0:00:04.9]}
55... Qg2+ {[%clk 0:00:20.6]} 56. Kf6 {[%clk 0:00:05.2]} 56... Qc6+ {[%clk
0:00:20]} 57. Kf7 {[%clk 0:00:05.2]} 57... Qd7+ {[%clk 0:00:19.4]} 58. Qe7
{[%clk 0:00:05.5]} 58... Qxd4 {[%clk 0:00:19.1]} 59. Kf8+ {[%clk 0:00:05.8]}
59... Kh8 {[%clk 0:00:17.2]} 60. Ke8 {[%clk 0:00:04.6]} 60... Qg7 {[%clk
0:00:16.9]} 61. Qf8+ {[%clk 0:00:03.9]} 61... Qxf8+ {[%clk 0:00:17]} 62. Kxf8
{[%clk 0:00:04.8]} 62... Kh7 {[%clk 0:00:17.5]} 63. Kf7 {[%clk 0:00:05.2]} 63...
Kh6 {[%clk 0:00:18]} 64. Kg8 {[%clk 0:00:05.5]} 64... Kh5 {[%clk 0:00:18.5]} 65.
Kg7 {[%clk 0:00:05.8]} 65... Kxh4 {[%clk 0:00:19.1]} 66. Kxg6 {[%clk 0:00:06.2]}
1/2-1/2

[Event "Early-Titled-Tuesday-Blitz-November-28-2023"]
[Site "Chess.com"]
[Date "2023.11.28"]
[Round "3"]
[White "ATM622"]
[Black "jens1102"]
[Result "0-1"]
[WhiteElo "2456"]
[BlackElo "2626"]
[TimeControl "180+1"]
[EndTime "8:30:10 PST"]
[Termination "jens1102 won by checkmate"]

1. d4 {[%clk 0:02:54.9]} 1... Nf6 {[%clk 0:02:59.6]} 2. c4 {[%clk 0:02:54.4]}
2... e6 {[%clk 0:03:00.5]} 3. g3 {[%clk 0:02:53.4]} 3... d5 {[%clk 0:03:01.4]}
4. Bg2 {[%clk 0:02:53.7]} 4... c6 {[%clk 0:03:00.5]} 5. Nf3 {[%clk 0:02:54]}
5... Be7 {[%clk 0:03:00.2]} 6. Nbd2 {[%clk 0:02:54.2]} 6... O-O {[%clk
0:03:01.1]} 7. O-O {[%clk 0:02:54.2]} 7... Nbd7 {[%clk 0:02:42.1]} 8. Qc2 {[%clk
0:02:53.9]} 8... b6 {[%clk 0:02:42.4]} 9. e4 {[%clk 0:02:53.4]} 9... dxe4 {[%clk
0:02:43]} 10. Nxe4 {[%clk 0:02:54.3]} 10... Nxe4 {[%clk 0:02:43.5]} 11. Qxe4
{[%clk 0:02:55.2]} 11... Bb7 {[%clk 0:02:44.3]} 12. Rd1 {[%clk 0:02:54.5]} 12...
Nf6 {[%clk 0:02:44.7]} 13. Qc2 {[%clk 0:02:53.9]} 13... Rc8 {[%clk 0:02:41.7]}
14. b3 {[%clk 0:02:52.8]} 14... Qc7 {[%clk 0:02:42]} 15. Bf4 {[%clk 0:02:49.6]}
15... Bd6 {[%clk 0:02:42.2]} 16. Bxd6 {[%clk 0:02:49.5]} 16... Qxd6 {[%clk
0:02:43.1]} 17. Ne5 {[%clk 0:02:50]} 17... Rfd8 {[%clk 0:02:42]} 18. Rd2 {[%clk
0:02:46.3]} 18... Qc7 {[%clk 0:02:39.6]} 19. Rad1 {[%clk 0:02:30.7]} 19... Ba8
{[%clk 0:02:24.8]} 20. f4 {[%clk 0:01:53.5]} 20... c5 {[%clk 0:02:21]} 21. Bxa8
{[%clk 0:01:51.4]} 21... Rxa8 {[%clk 0:02:21.9]} 22. dxc5 {[%clk 0:01:43.6]}
22... Qxc5+ {[%clk 0:02:22.8]} 23. Kg2 {[%clk 0:01:42.2]} 23... Qc7 {[%clk
0:02:16.6]} 24. Rxd8+ {[%clk 0:01:34.1]} 24... Rxd8 {[%clk 0:02:16.1]} 25. Rxd8+
{[%clk 0:01:34.3]} 25... Qxd8 {[%clk 0:02:17]} 26. Qd3 {[%clk 0:01:34.6]} 26...
Qc7 {[%clk 0:02:00.4]} 27. h3 {[%clk 0:01:27.3]} 27... Kf8 {[%clk 0:01:59.6]}
28. g4 {[%clk 0:01:23.8]} 28... g6 {[%clk 0:01:59.6]} 29. Qd4 {[%clk 0:01:20.1]}
29... Ke7 {[%clk 0:01:58]} 30. b4 {[%clk 0:01:13]} 30... Qb7+ {[%clk 0:01:55.5]}
31. Kh2 {[%clk 0:01:11]} 31... Qc7 {[%clk 0:01:39]} 32. b5 {[%clk 0:01:07.7]}
32... Kf8 {[%clk 0:01:23.2]} 33. Nc6 {[%clk 0:00:54.7]} 33... Ng8 {[%clk
0:01:23.3]} 34. g5 {[%clk 0:00:47.3]} 34... h6 {[%clk 0:01:19.2]} 35. h4 {[%clk
0:00:44]} 35... hxg5 {[%clk 0:01:14.2]} 36. hxg5 {[%clk 0:00:43.4]} 36... a6
{[%clk 0:01:02.9]} 37. a4 {[%clk 0:00:42.6]} 37... axb5 {[%clk 0:01:03.1]} 38.
cxb5 {[%clk 0:00:33.8]} 38... Ne7 {[%clk 0:00:57]} 39. Nxe7 {[%clk 0:00:03.7]}
39... Kxe7 {[%clk 0:00:54.7]} 40. Qf6+ {[%clk 0:00:03.7]} 40... Ke8 {[%clk
0:00:50.3]} 41. Qh8+ {[%clk 0:00:03.6]} 41... Kd7 {[%clk 0:00:48.6]} 42. Qd4+
{[%clk 0:00:04.1]} 42... Kc8 {[%clk 0:00:47.6]} 43. Kg3 {[%clk 0:00:04.5]} 43...
Kb7 {[%clk 0:00:47.7]} 44. Qe4+ {[%clk 0:00:04.3]} 44... Ka7 {[%clk 0:00:47.7]}
45. Qd4 {[%clk 0:00:02.5]} 45... Kb8 {[%clk 0:00:41.3]} 46. Kf3 {[%clk
0:00:02.6]} 46... Kb7 {[%clk 0:00:39.4]} 47. Qe4+ {[%clk 0:00:02.6]} 47... Ka7
{[%clk 0:00:39.9]} 48. Qd4 {[%clk 0:00:02.6]} 48... Qb7+ {[%clk 0:00:38.6]} 49.
Ke3 {[%clk 0:00:01.8]} 49... Qc7 {[%clk 0:00:36.8]} 50. Ke4 {[%clk 0:00:01.4]}
50... Qc2+ {[%clk 0:00:35.6]} 51. Ke5 {[%clk 0:00:01.3]} 51... Qf5+ {[%clk
0:00:26.7]} 52. Kd6 {[%clk 0:00:02]} 52... Kb7 {[%clk 0:00:27.1]} 53. Ke7 {[%clk
0:00:01.4]} 53... Qd5 {[%clk 0:00:23]} 54. Qxd5+ {[%clk 0:00:01.6]} 54... exd5
{[%clk 0:00:23.9]} 55. Kxf7 {[%clk 0:00:02]} 55... d4 {[%clk 0:00:24.8]} 56.
Kxg6 {[%clk 0:00:02.9]} 56... d3 {[%clk 0:00:25.7]} 57. f5 {[%clk 0:00:03.7]}
57... d2 {[%clk 0:00:26.6]} 58. f6 {[%clk 0:00:04.6]} 58... d1=Q {[%clk
0:00:27.1]} 59. f7 {[%clk 0:00:05.5]} 59... Qd3+ {[%clk 0:00:20.5]} 60. Kf6
{[%clk 0:00:04.4]} 60... Qd4+ {[%clk 0:00:19.4]} 61. Kg6 {[%clk 0:00:03.6]}
61... Qe4+ {[%clk 0:00:19.6]} 62. Kf6 {[%clk 0:00:03.7]} 62... Qf4+ {[%clk
0:00:20.2]} 63. Kg6 {[%clk 0:00:04]} 63... Kc7 {[%clk 0:00:20.1]} 64. Kg7 {[%clk
0:00:02.9]} 64... Qxg5+ {[%clk 0:00:20.1]} 65. Kf8 {[%clk 0:00:03.3]} 65... Kd7
{[%clk 0:00:19.1]} 66. a5 {[%clk 0:00:03.6]} 66... Ke6 {[%clk 0:00:18.3]} 67.
axb6 {[%clk 0:00:02.9]} 67... Qg6 {[%clk 0:00:18.7]} 68. Ke8 {[%clk 0:00:02.6]}
68... Qxf7+ {[%clk 0:00:19.1]} 69. Kd8 {[%clk 0:00:03.5]} 69... Qd7# {[%clk
0:00:19.7]} 0-1